[Event "Titled Tuesday Blitz August 22 Early 2023"]
[White "Ai, Evan"]
[Black "Itkis, Boris"]
[WhiteFideId "2094770"]
[BlackFideId "1209167"]
[WhiteElo "2256"]
[BlackElo "2477"]
[Result "0-1"]
[Round "2"]
[TimeControl "180+1"]
[Date "2023.08.22"]
[WhiteClock "0:00:06"]
[BlackClock "0:01:50"]
[Board "217"]

1. e4 {[%clk 0:02:07]}  e6 {[%clk 0:02:59]} 2. d4 {[%clk 0:02:06]}  d5 {[%clk 0:02:58]} 3. Nd2 {[%clk 0:02:06]}  c5 {[%clk 0:02:58]} 4. exd5 {[%clk 0:02:07]}  Qxd5 {[%clk 0:02:58]} 5. Ngf3 {[%clk 0:02:04]}  cxd4 {[%clk 0:02:58]} 6. Bc4 {[%clk 0:02:02]}  Qd6 {[%clk 0:02:58]} 7. O-O {[%clk 0:02:02]}  Nf6 {[%clk 0:02:58]} 8. Nb3 {[%clk 0:02:01]}  Nc6 {[%clk 0:02:58]} 9. Nbxd4 {[%clk 0:02:02]}  Nxd4 {[%clk 0:02:59]} 10. Nxd4 {[%clk 0:02:02]}  Be7 {[%clk 0:02:59]} 11. c3 {[%clk 0:02:00]}  O-O {[%clk 0:02:57]} 12. Qe2 {[%clk 0:01:55]}  Qc7 {[%clk 0:02:55]} 13. Bb3 {[%clk 0:01:47]}  a5 {[%clk 0:02:53]} 14. a4 {[%clk 0:01:31]}  Bd7 {[%clk 0:02:51]} 15. Qf3 {[%clk 0:01:07]}  Rac8 {[%clk 0:02:38]} 16. Re1 {[%clk 0:00:53]}  Rfd8 {[%clk 0:02:32]} 17. Bf4 {[%clk 0:00:51]}  Qb6 {[%clk 0:02:31]} 18. Be3 {[%clk 0:00:39]}  Bc6 {[%clk 0:02:30]} 19. Nxc6 {[%clk 0:00:18]}  Qxc6 {[%clk 0:02:31]} 20. Qxc6 {[%clk 0:00:18]}  bxc6 {[%clk 0:02:31]} 21. Rad1 {[%clk 0:00:19]}  Nd5 {[%clk 0:02:31]} 22. Bxd5 {[%clk 0:00:17]}  Rxd5 {[%clk 0:02:29]} 23. Rxd5 {[%clk 0:00:16]}  cxd5 {[%clk 0:02:30]} 24. Bb6 {[%clk 0:00:15]}  Bd8 {[%clk 0:02:15]} 25. Bxd8 {[%clk 0:00:14]}  Rxd8 {[%clk 0:02:16]} 26. b4 {[%clk 0:00:15]}  Rc8 {[%clk 0:02:13]} 27. bxa5 {[%clk 0:00:07]}  Rxc3 {[%clk 0:01:58]} 28. a6 {[%clk 0:00:07]}  Rc7 {[%clk 0:01:51]} 29. Rb1 {[%clk 0:00:06]}  Kf8 {[%clk 0:01:51]} 30. Rb8+ {[%clk 0:00:04]}  Ke7 {[%clk 0:01:51]} 31. Rb7 {[%clk 0:00:04]}  Kd6 {[%clk 0:01:51]} 32. Rb6+ {[%clk 0:00:01]}  Rc6 {[%clk 0:01:45]} 33. Rxc6+ {[%clk 0:00:01]}  Kxc6 {[%clk 0:01:46]} 34. f4 {[%clk 0:00:02]}  Kb6 {[%clk 0:01:46]} 35. Kf2 {[%clk 0:00:02]}  Kxa6 {[%clk 0:01:46]} 36. Ke3 {[%clk 0:00:03]}  Ka5 {[%clk 0:01:47]} 37. Kd4 {[%clk 0:00:04]}  Kxa4 {[%clk 0:01:48]} 38. f5 {[%clk 0:00:05]}  Kb5 {[%clk 0:01:48]} 39. fxe6 {[%clk 0:00:06]}  fxe6 {[%clk 0:01:48]} 40. g4 {[%clk 0:00:06]}  Kc6 {[%clk 0:01:48]} 41. h4 {[%clk 0:00:07]}  Kd6 {[%clk 0:01:49]} 42. g5 {[%clk 0:00:06]}  e5+ {[%clk 0:01:50]} 0-1


[Site "https://www.chess.com"]

[Event "Titled Tuesday Blitz August 22 Early 2023"]
[White "Marn, Jan"]
[Black "Schut, Han"]
[WhiteFideId "14619245"]
[BlackFideId "1005561"]
[WhiteElo "2472"]
[BlackElo "2251"]
[Result "1-0"]
[Round "2"]
[TimeControl "180+1"]
[Date "2023.08.22"]
[WhiteClock "0:00:46"]
[BlackClock "0:00:08"]
[Board "221"]

1. d4 {[%clk 0:03:00]}  Nf6 {[%clk 0:02:59]} 2. Nf3 {[%clk 0:03:01]}  g6 {[%clk 0:02:59]} 3. Nbd2 {[%clk 0:03:00]}  d5 {[%clk 0:02:59]} 4. e3 {[%clk 0:03:00]}  Bg7 {[%clk 0:02:59]} 5. b4 {[%clk 0:03:00]}  a5 {[%clk 0:02:51]} 6. b5 {[%clk 0:03:00]}  c5 {[%clk 0:02:51]} 7. bxc6 {[%clk 0:03:00]}  bxc6 {[%clk 0:02:47]} 8. Ba3 {[%clk 0:02:56]}  Nbd7 {[%clk 0:02:31]} 9. Rb1 {[%clk 0:02:52]}  c5 {[%clk 0:02:29]} 10. dxc5 {[%clk 0:02:27]}  Ne4 {[%clk 0:02:17]} 11. Nxe4 {[%clk 0:02:26]}  dxe4 {[%clk 0:02:16]} 12. Nd4 {[%clk 0:02:26]}  Qc7 {[%clk 0:01:46]} 13. c6 {[%clk 0:02:04]}  Ne5 {[%clk 0:01:30]} 14. Bb5 {[%clk 0:01:49]}  O-O {[%clk 0:01:25]} 15. O-O {[%clk 0:01:49]}  Rd8 {[%clk 0:01:16]} 16. Qc1 {[%clk 0:01:27]}  Ba6 {[%clk 0:01:12]} 17. Bc5 {[%clk 0:01:20]}  Bxb5 {[%clk 0:00:59]} 18. Rxb5 {[%clk 0:01:20]}  Nxc6 {[%clk 0:00:33]} 19. Bb6 {[%clk 0:01:20]}  Qc8 {[%clk 0:00:13]} 20. Bxd8 {[%clk 0:01:16]}  Nxd4 {[%clk 0:00:13]} 21. exd4 {[%clk 0:01:16]}  Qxd8 {[%clk 0:00:12]} 22. d5 {[%clk 0:01:16]}  Qd7 {[%clk 0:00:12]} 23. c4 {[%clk 0:01:15]}  f5 {[%clk 0:00:12]} 24. Rd1 {[%clk 0:01:07]}  Qd6 {[%clk 0:00:12]} 25. c5 {[%clk 0:01:06]}  Qe5 {[%clk 0:00:12]} 26. c6 {[%clk 0:01:06]}  Kf7 {[%clk 0:00:11]} 27. Qc4 {[%clk 0:01:05]}  Qf4 {[%clk 0:00:10]} 28. d6+ {[%clk 0:01:04]}  e6 {[%clk 0:00:10]} 29. d7 {[%clk 0:01:01]}  Be5 {[%clk 0:00:10]} 30. g3 {[%clk 0:00:59]}  Qf3 {[%clk 0:00:11]} 31. d8=Q {[%clk 0:00:51]}  e3 {[%clk 0:00:08]} 32. Rd7# {[%clk 0:00:46]} 1-0


[Site "https://www.chess.com"]

[Event "Titled Tuesday Blitz August 22 Early 2023"]
[White "Fernandez Hernandez, Gerardo"]
[Black "Goncalves, Davi Sulzbacher"]
[WhiteFideId "2207400"]
[BlackFideId "2154510"]
[WhiteElo "2247"]
[BlackElo "2470"]
[Result "0-1"]
[Round "2"]
[TimeControl "180+1"]
[Date "2023.08.22"]
[WhiteClock "0:00:00"]
[BlackClock "0:00:48"]
[Board "223"]

1. e4 {[%clk 0:03:00]}  c5 {[%clk 0:02:57]} 2. Nc3 {[%clk 0:03:00]}  d6 {[%clk 0:02:58]} 3. f4 {[%clk 0:02:59]}  Nf6 {[%clk 0:02:58]} 4. Nf3 {[%clk 0:03:00]}  Nc6 {[%clk 0:02:58]} 5. Bc4 {[%clk 0:02:56]}  g6 {[%clk 0:02:58]} 6. O-O {[%clk 0:02:53]}  Bg7 {[%clk 0:02:58]} 7. d3 {[%clk 0:02:54]}  O-O {[%clk 0:02:58]} 8. Qe1 {[%clk 0:02:54]}  Nd4 {[%clk 0:02:57]} 9. Nxd4 {[%clk 0:02:43]}  cxd4 {[%clk 0:02:58]} 10. Ne2 {[%clk 0:02:39]}  d5 {[%clk 0:02:58]} 11. exd5 {[%clk 0:02:35]}  Nxd5 {[%clk 0:02:58]} 12. Qf2 {[%clk 0:02:29]}  Nb6 {[%clk 0:02:22]} 13. Bb3 {[%clk 0:02:26]}  a5 {[%clk 0:02:22]} 14. a4 {[%clk 0:02:23]}  Qd6 {[%clk 0:02:14]} 15. Ng3 {[%clk 0:02:11]}  Be6 {[%clk 0:02:07]} 16. Bxe6 {[%clk 0:02:05]}  Qxe6 {[%clk 0:02:08]} 17. Bd2 {[%clk 0:01:55]}  Qc6 {[%clk 0:02:04]} 18. c4 {[%clk 0:01:23]}  dxc3 {[%clk 0:01:58]} 19. Bxc3 {[%clk 0:01:22]}  Bxc3 {[%clk 0:01:57]} 20. bxc3 {[%clk 0:01:23]}  Nxa4 {[%clk 0:01:56]} 21. Qd4 {[%clk 0:00:56]}  b5 {[%clk 0:01:50]} 22. f5 {[%clk 0:00:48]}  Qxc3 {[%clk 0:01:40]} 23. Rxa4 {[%clk 0:00:46]}  Qxd4+ {[%clk 0:01:40]} 24. Rxd4 {[%clk 0:00:46]}  Rfd8 {[%clk 0:01:41]} 25. Rxd8+ {[%clk 0:00:43]}  Rxd8 {[%clk 0:01:42]} 26. fxg6 {[%clk 0:00:43]}  hxg6 {[%clk 0:01:42]} 27. Rb1 {[%clk 0:00:39]}  b4 {[%clk 0:01:38]} 28. Rb3 {[%clk 0:00:39]}  f5 {[%clk 0:01:35]} 29. Ne2 {[%clk 0:00:36]}  e5 {[%clk 0:01:34]} 30. Kf2 {[%clk 0:00:34]}  Kf7 {[%clk 0:01:34]} 31. Ke3 {[%clk 0:00:34]}  Ke6 {[%clk 0:01:33]} 32. d4 {[%clk 0:00:31]}  exd4+ {[%clk 0:01:07]} 33. Nxd4+ {[%clk 0:00:32]}  Kd5 {[%clk 0:01:08]} 34. Rd3 {[%clk 0:00:13]}  Re8+ {[%clk 0:01:06]} 35. Kd2 {[%clk 0:00:12]}  Kc4 {[%clk 0:01:05]} 36. Nc2 {[%clk 0:00:11]}  Re4 {[%clk 0:00:59]} 37. Ne3+ {[%clk 0:00:08]}  Kb5 {[%clk 0:00:51]} 38. Rd5+ {[%clk 0:00:08]}  Kb6 {[%clk 0:00:51]} 39. Rd6+ {[%clk 0:00:05]}  Kb5 {[%clk 0:00:51]} 40. Rd5+ {[%clk 0:00:05]}  Ka4 {[%clk 0:00:49]} 41. Kd3 {[%clk 0:00:00]}  b3 {[%clk 0:00:48]} 0-1


[Site "https://www.chess.com"]

[Event "Titled Tuesday Blitz August 22 Early 2023"]
[White "Flynn, Jacob"]
[Black "Polanco Nunez, Yoel Estarling"]
[WhiteFideId "2509393"]
[BlackFideId "6401783"]
[WhiteElo "2467"]
[BlackElo "2244"]
[Result "1-0"]
[Round "2"]
[TimeControl "180+1"]
[Date "2023.08.22"]
[WhiteClock "0:00:33"]
[BlackClock "0:00:00"]
[Board "225"]

1. d4 {[%clk 0:02:55]}  Nf6 {[%clk 0:02:54]} 2. c4 {[%clk 0:02:55]}  e6 {[%clk 0:02:53]} 3. g3 {[%clk 0:02:55]}  c5 {[%clk 0:02:51]} 4. d5 {[%clk 0:02:54]}  exd5 {[%clk 0:02:49]} 5. cxd5 {[%clk 0:02:55]}  d6 {[%clk 0:02:48]} 6. Nc3 {[%clk 0:02:56]}  Be7 {[%clk 0:02:48]} 7. Nf3 {[%clk 0:02:57]}  O-O {[%clk 0:02:48]} 8. Bg2 {[%clk 0:02:58]}  Na6 {[%clk 0:02:45]} 9. O-O {[%clk 0:02:59]}  Nc7 {[%clk 0:02:45]} 10. e4 {[%clk 0:02:57]}  a6 {[%clk 0:02:39]} 11. a4 {[%clk 0:02:57]}  Rb8 {[%clk 0:02:36]} 12. a5 {[%clk 0:02:56]}  Nb5 {[%clk 0:02:35]} 13. Re1 {[%clk 0:02:52]}  Bg4 {[%clk 0:02:33]} 14. h3 {[%clk 0:02:53]}  Bxf3 {[%clk 0:02:32]} 15. Bxf3 {[%clk 0:02:53]}  Nd4 {[%clk 0:02:31]} 16. Bg2 {[%clk 0:02:50]}  Nd7 {[%clk 0:02:32]} 17. Kh2 {[%clk 0:02:32]}  Re8 {[%clk 0:02:31]} 18. f4 {[%clk 0:02:31]}  Bf6 {[%clk 0:02:30]} 19. Be3 {[%clk 0:02:21]}  b6 {[%clk 0:02:23]} 20. axb6 {[%clk 0:02:19]}  Qxb6 {[%clk 0:02:22]} 21. Ne2 {[%clk 0:02:19]}  Nxe2 {[%clk 0:01:52]} 22. Rxe2 {[%clk 0:02:18]}  a5 {[%clk 0:01:51]} 23. Qa4 {[%clk 0:02:13]}  Red8 {[%clk 0:01:44]} 24. Qxa5 {[%clk 0:02:13]}  Qxa5 {[%clk 0:01:40]} 25. Rxa5 {[%clk 0:02:13]}  Rxb2 {[%clk 0:01:40]} 26. Rxb2 {[%clk 0:02:12]}  Bxb2 {[%clk 0:01:41]} 27. Rb5 {[%clk 0:02:04]}  Bf6 {[%clk 0:01:36]} 28. Bf1 {[%clk 0:02:00]}  g5 {[%clk 0:01:36]} 29. fxg5 {[%clk 0:01:50]}  Bg7 {[%clk 0:01:29]} 30. Kg2 {[%clk 0:01:39]}  Re8 {[%clk 0:01:26]} 31. Bd3 {[%clk 0:01:36]}  Ne5 {[%clk 0:01:26]} 32. Bc2 {[%clk 0:01:36]}  Ng6 {[%clk 0:01:16]} 33. h4 {[%clk 0:01:33]}  Bd4 {[%clk 0:01:12]} 34. Bd2 {[%clk 0:01:20]}  Ne5 {[%clk 0:01:04]} 35. Bf4 {[%clk 0:01:16]}  Nc4 {[%clk 0:00:55]} 36. Kh3 {[%clk 0:01:15]}  Be5 {[%clk 0:00:51]} 37. Bd3 {[%clk 0:01:08]}  Bxf4 {[%clk 0:00:41]} 38. gxf4 {[%clk 0:01:07]}  Nd2 {[%clk 0:00:42]} 39. e5 {[%clk 0:00:52]}  dxe5 {[%clk 0:00:39]} 40. d6 {[%clk 0:00:46]}  c4 {[%clk 0:00:35]} 41. d7 {[%clk 0:00:42]}  Rd8 {[%clk 0:00:28]} 42. Bf5 {[%clk 0:00:42]}  Nb3 {[%clk 0:00:21]} 43. Rxe5 {[%clk 0:00:36]}  Kf8 {[%clk 0:00:19]} 44. Re4 {[%clk 0:00:35]}  Nc5 {[%clk 0:00:13]} 45. Rxc4 {[%clk 0:00:35]}  Ne6 {[%clk 0:00:10]} 46. Bxe6 {[%clk 0:00:33]}  fxe6 {[%clk 0:00:10]} 47. Rc8 {[%clk 0:00:33]}  Ke7 {[%clk 0:00:09]} 48. Rxd8 {[%clk 0:00:33]}  Kxd8 {[%clk 0:00:10]} 49. h5 {[%clk 0:00:32]}  Kxd7 {[%clk 0:00:10]} 50. g6 {[%clk 0:00:31]}  hxg6 {[%clk 0:00:07]} 51. h6 {[%clk 0:00:32]}  Ke7 {[%clk 0:00:08]} 52. h7 {[%clk 0:00:32]}  Kf7 {[%clk 0:00:00]} 53. h8=Q {[%clk 0:00:33]} 1-0


[Site "https://www.chess.com"]

[Event "Titled Tuesday Blitz August 22 Early 2023"]
[White "KrokerGuy"]
[Black "Kiseleva, Arina"]
[BlackFideId "4164989"]
[WhiteElo "2465"]
[BlackElo "2238"]
[Result "1-0"]
[Round "2"]
[TimeControl "180+1"]
[Date "2023.08.22"]
[WhiteClock "0:00:12"]
[BlackClock "0:00:05"]
[Board "227"]

1. e4 {[%clk 0:03:00]}  c6 {[%clk 0:02:54]} 2. d4 {[%clk 0:03:00]}  d5 {[%clk 0:02:54]} 3. Nc3 {[%clk 0:03:01]}  dxe4 {[%clk 0:02:54]} 4. Nxe4 {[%clk 0:03:02]}  Nf6 {[%clk 0:02:54]} 5. Nxf6+ {[%clk 0:03:03]}  exf6 {[%clk 0:02:55]} 6. c3 {[%clk 0:03:03]}  Bd6 {[%clk 0:02:55]} 7. Bd3 {[%clk 0:03:04]}  Na6 {[%clk 0:02:55]} 8. Qc2 {[%clk 0:03:04]}  h5 {[%clk 0:02:54]} 9. Ne2 {[%clk 0:03:04]}  Nc7 {[%clk 0:02:54]} 10. Bd2 {[%clk 0:03:04]}  Nd5 {[%clk 0:02:50]} 11. a3 {[%clk 0:03:00]}  Kf8 {[%clk 0:02:37]} 12. c4 {[%clk 0:02:48]}  Nc7 {[%clk 0:02:35]} 13. O-O {[%clk 0:02:43]}  g6 {[%clk 0:02:30]} 14. Bxg6 {[%clk 0:02:25]}  fxg6 {[%clk 0:02:29]} 15. Qxg6 {[%clk 0:02:26]}  Qe7 {[%clk 0:02:21]} 16. c5 {[%clk 0:02:02]}  Bxh2+ {[%clk 0:02:06]} 17. Kxh2 {[%clk 0:02:02]}  Ne8 {[%clk 0:02:06]} 18. Rae1 {[%clk 0:01:28]}  Qg7 {[%clk 0:01:51]} 19. Nf4 {[%clk 0:01:29]}  Bd7 {[%clk 0:01:22]} 20. Qxg7+ {[%clk 0:01:27]}  Nxg7 {[%clk 0:01:14]} 21. Ng6+ {[%clk 0:01:27]}  Kf7 {[%clk 0:01:14]} 22. Nxh8+ {[%clk 0:01:27]}  Rxh8 {[%clk 0:01:14]} 23. b4 {[%clk 0:01:17]}  Nf5 {[%clk 0:01:08]} 24. Bc3 {[%clk 0:00:48]}  Be6 {[%clk 0:01:06]} 25. d5 {[%clk 0:00:40]}  Bxd5 {[%clk 0:01:04]} 26. g3 {[%clk 0:00:38]}  Rg8 {[%clk 0:00:57]} 27. Kh3 {[%clk 0:00:32]}  h4 {[%clk 0:00:55]} 28. g4 {[%clk 0:00:32]}  Nh6 {[%clk 0:00:54]} 29. f3 {[%clk 0:00:31]}  f5 {[%clk 0:00:54]} 30. Bd2 {[%clk 0:00:26]}  Kg6 {[%clk 0:00:40]} 31. Bxh6 {[%clk 0:00:23]}  Kxh6 {[%clk 0:00:40]} 32. Kxh4 {[%clk 0:00:19]}  a5 {[%clk 0:00:21]} 33. Re7 {[%clk 0:00:15]}  axb4 {[%clk 0:00:20]} 34. axb4 {[%clk 0:00:16]}  Ra8 {[%clk 0:00:15]} 35. gxf5 {[%clk 0:00:11]}  Rf8 {[%clk 0:00:06]} 36. Kg4 {[%clk 0:00:11]}  Rg8+ {[%clk 0:00:06]} 37. Kf4 {[%clk 0:00:12]}  Rb8 {[%clk 0:00:05]} 38. Rh1# {[%clk 0:00:12]} 1-0


[Site "https://www.chess.com"]

[Event "Titled Tuesday Blitz August 22 Early 2023"]
[White "Miguelitro69"]
[Black "Carroll, Thomas"]
[BlackFideId "450111"]
[WhiteElo "2228"]
[BlackElo "2464"]
[Result "1/2-1/2"]
[Round "2"]
[TimeControl "180+1"]
[Date "2023.08.22"]
[WhiteClock "0:00:17"]
[BlackClock "0:00:09"]
[Board "228"]

1. e4 {[%clk 0:03:00]}  e6 {[%clk 0:02:57]} 2. Qe2 {[%clk 0:03:00]}  c5 {[%clk 0:02:53]} 3. Nf3 {[%clk 0:02:59]}  Nc6 {[%clk 0:02:54]} 4. g3 {[%clk 0:02:59]}  g6 {[%clk 0:02:52]} 5. Bg2 {[%clk 0:02:59]}  Bg7 {[%clk 0:02:53]} 6. O-O {[%clk 0:02:59]}  Nge7 {[%clk 0:02:54]} 7. c3 {[%clk 0:02:59]}  O-O {[%clk 0:02:52]} 8. Rd1 {[%clk 0:02:59]}  d5 {[%clk 0:02:49]} 9. d3 {[%clk 0:02:56]}  d4 {[%clk 0:02:42]} 10. c4 {[%clk 0:02:51]}  a6 {[%clk 0:02:39]} 11. Nbd2 {[%clk 0:02:46]}  b5 {[%clk 0:02:38]} 12. b3 {[%clk 0:02:45]}  Bd7 {[%clk 0:02:33]} 13. Ba3 {[%clk 0:02:45]}  b4 {[%clk 0:02:32]} 14. Bb2 {[%clk 0:02:44]}  a5 {[%clk 0:02:33]} 15. h4 {[%clk 0:02:36]}  a4 {[%clk 0:02:30]} 16. bxa4 {[%clk 0:02:33]}  Rxa4 {[%clk 0:02:23]} 17. Nb3 {[%clk 0:02:33]}  Qb6 {[%clk 0:02:19]} 18. e5 {[%clk 0:02:16]}  Rfa8 {[%clk 0:02:15]} 19. Bc1 {[%clk 0:02:16]}  Na5 {[%clk 0:02:13]} 20. Nbd2 {[%clk 0:02:01]}  b3 {[%clk 0:02:11]} 21. Ne4 {[%clk 0:02:00]}  Bc6 {[%clk 0:01:48]} 22. Bg5 {[%clk 0:01:48]}  Nf5 {[%clk 0:01:21]} 23. axb3 {[%clk 0:01:45]}  Rxa1 {[%clk 0:01:20]} 24. Rxa1 {[%clk 0:01:43]}  Nxb3 {[%clk 0:01:17]} 25. Rxa8+ {[%clk 0:01:39]}  Bxa8 {[%clk 0:01:18]} 26. Bf6 {[%clk 0:01:31]}  Qa5 {[%clk 0:00:47]} 27. g4 {[%clk 0:01:25]}  Nh6 {[%clk 0:00:45]} 28. Nfg5 {[%clk 0:01:20]}  Nc1 {[%clk 0:00:38]} 29. Qd1 {[%clk 0:01:12]}  Na2 {[%clk 0:00:35]} 30. Kh2 {[%clk 0:01:05]}  Nc3 {[%clk 0:00:33]} 31. Qf3 {[%clk 0:01:05]}  Nxe4 {[%clk 0:00:26]} 32. Nxe4 {[%clk 0:01:04]}  Bxe4 {[%clk 0:00:24]} 33. Qxe4 {[%clk 0:01:02]}  Bxf6 {[%clk 0:00:20]} 34. exf6 {[%clk 0:01:01]}  Qd8 {[%clk 0:00:21]} 35. Qf4 {[%clk 0:00:58]}  e5 {[%clk 0:00:12]} 36. Qxh6 {[%clk 0:00:57]}  Qxf6 {[%clk 0:00:13]} 37. Qg5 {[%clk 0:00:53]}  Qxf2 {[%clk 0:00:13]} 38. Qxe5 {[%clk 0:00:51]}  Qxh4+ {[%clk 0:00:13]} 39. Kg1 {[%clk 0:00:51]}  Qxg4 {[%clk 0:00:12]} 40. Qe4 {[%clk 0:00:36]}  Qd1+ {[%clk 0:00:11]} 41. Kf2 {[%clk 0:00:35]}  Qd2+ {[%clk 0:00:11]} 42. Kg3 {[%clk 0:00:34]}  h5 {[%clk 0:00:11]} 43. Bf3 {[%clk 0:00:31]}  Kg7 {[%clk 0:00:10]} 44. Qe5+ {[%clk 0:00:31]}  Kh7 {[%clk 0:00:11]} 45. Qxc5 {[%clk 0:00:30]}  Qe1+ {[%clk 0:00:08]} 46. Kf4 {[%clk 0:00:30]}  Qe3+ {[%clk 0:00:09]} 47. Kg3 {[%clk 0:00:28]}  h4+ {[%clk 0:00:09]} 48. Kg4 {[%clk 0:00:25]}  f5+ {[%clk 0:00:10]} 49. Kxh4 {[%clk 0:00:23]}  Qxf3 {[%clk 0:00:10]} 50. Qe7+ {[%clk 0:00:21]}  Kg8 {[%clk 0:00:09]} 51. Qe8+ {[%clk 0:00:20]}  Kg7 {[%clk 0:00:09]} 52. Qe5+ {[%clk 0:00:19]}  Kh7 {[%clk 0:00:08]} 53. Qe7+ {[%clk 0:00:18]}  Kh6 {[%clk 0:00:08]} 54. Qg5+ {[%clk 0:00:18]}  Kh7 {[%clk 0:00:09]} 55. Qe7+ {[%clk 0:00:17]} 1/2-1/2


[Site "https://www.chess.com"]

[Event "Titled Tuesday Blitz August 22 Early 2023"]
[White "Serban, Cristian-Stefan"]
[Black "hsd2016"]
[WhiteFideId "1241443"]
[WhiteElo "2463"]
[BlackElo "2228"]
[Result "1-0"]
[Round "2"]
[TimeControl "180+1"]
[Date "2023.08.22"]
[WhiteClock "0:00:09"]
[BlackClock "0:00:09"]
[Board "229"]

1. Nf3 {[%clk 0:03:00]}  Nf6 {[%clk 0:02:58]} 2. g3 {[%clk 0:03:01]}  g6 {[%clk 0:02:58]} 3. Bg2 {[%clk 0:03:01]}  Bg7 {[%clk 0:02:52]} 4. O-O {[%clk 0:03:01]}  Kf8 {[%clk 0:02:51]} 5. d4 {[%clk 0:03:00]}  e6 {[%clk 0:02:49]} 6. c4 {[%clk 0:02:53]}  d5 {[%clk 0:02:48]} 7. Nc3 {[%clk 0:02:52]}  c6 {[%clk 0:02:47]} 8. Qc2 {[%clk 0:02:46]}  Nbd7 {[%clk 0:02:44]} 9. Rd1 {[%clk 0:02:46]}  Ke7 {[%clk 0:02:38]} 10. e4 {[%clk 0:02:44]}  dxe4 {[%clk 0:02:34]} 11. Nxe4 {[%clk 0:02:45]}  Re8 {[%clk 0:02:30]} 12. b3 {[%clk 0:02:24]}  Nxe4 {[%clk 0:02:22]} 13. Ba3+ {[%clk 0:02:10]}  Nd6 {[%clk 0:02:20]} 14. Ng5 {[%clk 0:02:11]}  Nf6 {[%clk 0:02:07]} 15. d5 {[%clk 0:02:03]}  cxd5 {[%clk 0:01:54]} 16. cxd5 {[%clk 0:02:03]}  e5 {[%clk 0:01:53]} 17. Rac1 {[%clk 0:01:39]}  h6 {[%clk 0:01:42]} 18. Qc7+ {[%clk 0:00:58]}  Qxc7 {[%clk 0:01:18]} 19. Rxc7+ {[%clk 0:00:59]}  Bd7 {[%clk 0:01:17]} 20. Nxf7 {[%clk 0:00:25]}  Kxf7 {[%clk 0:01:12]} 21. Bxd6 {[%clk 0:00:25]}  g5 {[%clk 0:00:44]} 22. Rxb7 {[%clk 0:00:22]}  Kg6 {[%clk 0:00:44]} 23. Bc7 {[%clk 0:00:18]}  a6 {[%clk 0:00:39]} 24. d6 {[%clk 0:00:14]}  e4 {[%clk 0:00:39]} 25. Bf1 {[%clk 0:00:13]}  a5 {[%clk 0:00:22]} 26. a4 {[%clk 0:00:12]}  Be6 {[%clk 0:00:19]} 27. Bb5 {[%clk 0:00:11]}  Nd7 {[%clk 0:00:19]} 28. Bb6 {[%clk 0:00:08]}  Nxb6 {[%clk 0:00:18]} 29. Bxe8+ {[%clk 0:00:08]}  Rxe8 {[%clk 0:00:17]} 30. Rxb6 {[%clk 0:00:09]}  Bd7 {[%clk 0:00:16]} 31. Rb7 {[%clk 0:00:09]}  Rd8 {[%clk 0:00:14]} 32. Ra7 {[%clk 0:00:09]}  Be6 {[%clk 0:00:12]} 33. Rxa5 {[%clk 0:00:07]}  Bxb3 {[%clk 0:00:12]} 34. Rb1 {[%clk 0:00:07]}  Bc2 {[%clk 0:00:12]} 35. Rc1 {[%clk 0:00:06]}  Bd3 {[%clk 0:00:11]} 36. Rc6 {[%clk 0:00:06]}  Rd7 {[%clk 0:00:08]} 37. Rd5 {[%clk 0:00:06]}  Kf7 {[%clk 0:00:06]} 38. Rc7 {[%clk 0:00:05]}  Ke6 {[%clk 0:00:06]} 39. Rxd7 {[%clk 0:00:05]}  Kxd7 {[%clk 0:00:07]} 40. a5 {[%clk 0:00:05]}  Bc4 {[%clk 0:00:06]} 41. Rc5 {[%clk 0:00:04]}  Bd3 {[%clk 0:00:06]} 42. Rc7+ {[%clk 0:00:05]}  Kxd6 {[%clk 0:00:06]} 43. Rxg7 {[%clk 0:00:06]}  Kc5 {[%clk 0:00:05]} 44. Rg6 {[%clk 0:00:06]}  Kb5 {[%clk 0:00:05]} 45. Rxh6 {[%clk 0:00:06]}  Kxa5 {[%clk 0:00:05]} 46. h4 {[%clk 0:00:06]}  gxh4 {[%clk 0:00:06]} 47. gxh4 {[%clk 0:00:07]}  Kb5 {[%clk 0:00:06]} 48. Rh8 {[%clk 0:00:07]}  Kc6 {[%clk 0:00:07]} 49. h5 {[%clk 0:00:08]}  Kd5 {[%clk 0:00:07]} 50. h6 {[%clk 0:00:08]}  Ke6 {[%clk 0:00:08]} 51. h7 {[%clk 0:00:09]}  Kf7 {[%clk 0:00:09]} 52. Rf8+ {[%clk 0:00:09]} 1-0


[Site "https://www.chess.com"]

[Event "Titled Tuesday Blitz August 22 Early 2023"]
[White "Wernberg, Hugo"]
[Black "AndresDelgado77"]
[WhiteFideId "1737511"]
[WhiteElo "2462"]
[BlackElo "2225"]
[Result "0-1"]
[Round "2"]
[TimeControl "180+1"]
[Date "2023.08.22"]
[WhiteClock "0:00:01"]
[BlackClock "0:00:49"]
[Board "231"]

1. d4 {[%clk 0:03:00]}  Nf6 {[%clk 0:02:59]} 2. c4 {[%clk 0:03:00]}  c6 {[%clk 0:02:58]} 3. Nf3 {[%clk 0:02:59]}  d5 {[%clk 0:02:56]} 4. Nc3 {[%clk 0:02:59]}  dxc4 {[%clk 0:02:55]} 5. a4 {[%clk 0:02:58]}  Bf5 {[%clk 0:02:47]} 6. Ne5 {[%clk 0:02:58]}  e6 {[%clk 0:02:46]} 7. Nxc4 {[%clk 0:02:53]}  c5 {[%clk 0:02:42]} 8. Be3 {[%clk 0:02:23]}  cxd4 {[%clk 0:02:32]} 9. Qxd4 {[%clk 0:02:17]}  Nc6 {[%clk 0:02:21]} 10. Qxd8+ {[%clk 0:02:04]}  Rxd8 {[%clk 0:02:20]} 11. Rd1 {[%clk 0:01:59]}  Rxd1+ {[%clk 0:02:02]} 12. Kxd1 {[%clk 0:01:56]}  Ng4 {[%clk 0:01:54]} 13. Nb5 {[%clk 0:01:31]}  Kd7 {[%clk 0:01:41]} 14. f3 {[%clk 0:00:47]}  Nxe3+ {[%clk 0:01:36]} 15. Nxe3 {[%clk 0:00:48]}  Bg6 {[%clk 0:01:34]} 16. Nc2 {[%clk 0:00:22]}  Bc5 {[%clk 0:01:15]} 17. e3 {[%clk 0:00:22]}  Bxc2+ {[%clk 0:01:05]} 18. Kxc2 {[%clk 0:00:23]}  Bxe3 {[%clk 0:01:05]} 19. Bc4 {[%clk 0:00:23]}  Bc5 {[%clk 0:00:55]} 20. Rd1+ {[%clk 0:00:22]}  Ke7 {[%clk 0:00:55]} 21. Kc3 {[%clk 0:00:18]}  Rc8 {[%clk 0:00:52]} 22. b3 {[%clk 0:00:03]}  a6 {[%clk 0:00:49]} 23. Nd4 {[%clk 0:00:01]} 0-1


[Site "https://www.chess.com"]

[Event "Titled Tuesday Blitz August 22 Early 2023"]
[White "KSho99"]
[Black "Perera Alfonso, Rene Humberto"]
[BlackFideId "3514722"]
[WhiteElo "2225"]
[BlackElo "2460"]
[Result "0-1"]
[Round "2"]
[TimeControl "180+1"]
[Date "2023.08.22"]
[WhiteClock "0:01:57"]
[BlackClock "0:01:46"]
[Board "232"]

1. Nf3 {[%clk 0:03:00]}  d5 {[%clk 0:02:59]} 2. g3 {[%clk 0:03:01]}  Nf6 {[%clk 0:02:59]} 3. Bg2 {[%clk 0:03:01]}  Bg4 {[%clk 0:02:58]} 4. Ne5 {[%clk 0:02:59]}  Bf5 {[%clk 0:02:58]} 5. O-O {[%clk 0:02:56]}  e6 {[%clk 0:02:58]} 6. b3 {[%clk 0:02:49]}  Nbd7 {[%clk 0:02:57]} 7. Bb2 {[%clk 0:02:49]}  Bd6 {[%clk 0:02:55]} 8. Nxd7 {[%clk 0:02:43]}  Qxd7 {[%clk 0:02:56]} 9. d3 {[%clk 0:02:43]}  h5 {[%clk 0:02:52]} 10. h4 {[%clk 0:02:38]}  e5 {[%clk 0:02:52]} 11. c4 {[%clk 0:02:30]}  Bh3 {[%clk 0:02:49]} 12. Nc3 {[%clk 0:02:25]}  Bxg2 {[%clk 0:02:42]} 13. Kxg2 {[%clk 0:02:25]}  d4 {[%clk 0:02:41]} 14. Ne4 {[%clk 0:02:18]}  Nxe4 {[%clk 0:02:37]} 15. dxe4 {[%clk 0:02:19]}  g5 {[%clk 0:02:37]} 16. hxg5 {[%clk 0:02:15]}  h4 {[%clk 0:02:37]} 17. Rh1 {[%clk 0:02:13]}  O-O-O {[%clk 0:02:37]} 18. gxh4 {[%clk 0:02:00]}  Qg4+ {[%clk 0:01:49]} 19. Kf1 {[%clk 0:02:00]}  Rxh4 {[%clk 0:01:48]} 20. Rg1 {[%clk 0:02:01]}  Qh3+ {[%clk 0:01:47]} 21. Ke1 {[%clk 0:01:57]}  Bb4+ {[%clk 0:01:46]} 0-1


[Site "https://www.chess.com"]